bitfinex-derivatives/quotes_BTCF0:USTF0_20240910
["timestamp","ask_amount","ask_price","bid_price","bid_amount"]
[1725950165761,0.089859,56906.0,56905.0,0.0665715]
[1725950166156,0.089859,56906.0,56904.0,0.024]
[1725950166157,0.087861,56905.0,56904.0,0.024]
[1725950166566,0.186361,56905.0,56904.0,0.024]
[1725950167963,0.186361,56905.0,56904.0,0.018]
[1725950168163,0.186361,56905.0,56904.0,0.008]
[1725950168465,0.0507,56905.0,56898.0,0.1041]
[1725950168761,0.1,56904.0,56898.0,0.1]
[1725950168968,0.087866,56902.0,56898.0,0.1]
[1725950170663,0.087866,56902.0,56898.0,0.114]
[1725950170861,0.087866,56902.0,56898.0,0.128]
[1725950171167,0.001,56902.0,56898.0,0.215871]
[1725950171362,0.001,56902.0,56901.0,0.187867]
[1725950171669,0.002,56902.0,56901.0,0.1]
[1725950171967,0.002,56902.0,56899.0,0.1463]
[1725950172469,0.001,56902.0,56899.0,0.1463]
[1725950172667,0.002,56902.0,56901.0,0.012]
[1725950173866,0.002,56902.0,56901.0,0.023]
[1725950174264,0.002,56902.0,56901.0,0.011]
[1725950175665,0.002,56902.0,56901.0,0.023]
[1725950177771,0.002,56902.0,56901.0,0.068]
[1725950178174,0.002,56902.0,56901.0,0.155867]
[1725950178664,0.089865,56902.0,56901.0,0.155867]
[1725950184070,0.089865,56902.0,56901.0,0.2044385]
[1725950184375,0.088865,56902.0,56901.0,0.1934385]
[1725950184674,0.089865,56902.0,56901.0,0.1994385]
[1725950185070,0.089865,56902.0,56901.0,0.1544385]
[1725950185263,0.089865,56902.0,56901.0,0.014]
[1725950185466,0.089865,56902.0,56901.0,0.013]
[1725950187078,0.089865,56902.0,56901.0,0.012]
[1725950187571,0.088865,56902.0,56901.0,0.006]
[1725950187873,0.088865,56902.0,56901.0,0.01]
[1725950188179,0.087865,56902.0,56901.0,0.009]
[1725950189479,0.087865,56902.0,56901.0,0.06157508]
[1725950191264,0.087865,56902.0,56901.0,0.009]
[1725950192780,0.01538515,56906.0,56905.0,0.087861]
[1725950193071,0.10232415,56906.0,56905.0,0.0004]
[1725950193662,0.26232415,56906.0,56905.0,0.0004]
[1725950194078,0.35018315,56906.0,56905.0,0.07166917]
[1725950194294,0.35018315,56906.0,56905.0,0.0014]
[1725950194980,0.35018315,56906.0,56905.0,0.07166917]
[1725950195370,0.35018315,56906.0,56905.0,0.0014]
[1725950195981,0.26232415,56906.0,56905.0,0.0014]
[1725950196170,0.20232415,56906.0,56905.0,0.0014]
[1725950197072,0.10232415,56906.0,56905.0,0.0014]
[1725950197271,0.20232415,56906.0,56905.0,0.11270684]
[1725950197671,0.10232415,56906.0,56905.0,0.11270684]
[1725950198567,0.10232415,56906.0,56905.0,0.11264293]
[1725950198773,0.10232415,56906.0,56905.0,0.11274215]
[1725950200276,0.01446515,56906.0,56905.0,0.20060315]
[1725950200575,0.087858,56907.0,56905.0,0.20060315]
[1725950200781,0.087858,56907.0,56906.0,0.11174215]
[1725950200984,0.087853,56910.0,56906.0,0.11174215]
[1725950201178,0.073056,56909.0,56908.0,0.087855]
[1725950201876,0.087856,56908.0,56907.0,0.18784712]
[1725950202069,0.088256,56908.0,56907.0,0.29917475]
[1725950203381,0.088256,56908.0,56907.0,0.30117475]
[1725950203575,0.088256,56908.0,56907.0,0.102]
[1725950204179,0.092256,56908.0,56907.0,0.1]
[1725950204882,0.092256,56908.0,56907.0,0.187858]
[1725950205878,0.091256,56908.0,56907.0,0.187858]
[1725950206075,0.091256,56908.0,56907.0,0.188858]
[1725950206273,0.0034,56908.0,56907.0,0.188858]
[1725950206474,0.0004,56908.0,56907.0,0.188858]
[1725950206670,0.0041,56915.0,56908.0,0.087856]
[1725950206870,0.087843,56917.0,56916.0,0.087843]
[1725950207078,0.087843,56917.0,56916.0,0.088243]
[1725950207773,0.087843,56917.0,56916.0,0.15848042]
[1725950207974,0.0457,56922.0,56920.0,0.087837]
[1725950208179,0.14784995,56922.0,56921.0,0.05304642]
[1725950209186,0.14784995,56922.0,56921.0,0.0004]
[1725950209379,0.24784995,56922.0,56921.0,0.0004]
[1725950209683,0.26084995,56922.0,56921.0,0.0014]
[1725950210379,0.27484995,56922.0,56921.0,0.0024]
[1725950221488,0.36268495,56922.0,56921.0,0.0024]
[1725950225095,0.3911672,56922.0,56921.0,0.0024]
[1725950226494,0.36268495,56922.0,56921.0,0.0024]
[1725950230600,0.27484995,56922.0,56921.0,0.0024]
[1725950232999,0.22914995,56922.0,56921.0,0.0024]
[1725950233189,0.22914995,56922.0,56921.0,0.05504642]
[1725950233388,0.22914995,56922.0,56921.0,0.0024]
[1725950233691,0.22914995,56922.0,56921.0,0.07263742]
[1725950233893,0.22914995,56922.0,56921.0,0.0024]
[1725950234193,0.22914995,56922.0,56921.0,0.07263742]
[1725950234391,0.25762922,56922.0,56921.0,0.0024]
[1725950234693,0.22914995,56922.0,56921.0,0.0024]
[1725950234895,0.14131495,56922.0,56921.0,0.0024]
[1725950235094,0.06979415,56922.0,56921.0,0.090236]
[1725950235504,0.04131495,56922.0,56921.0,0.190236]
[1725950235805,0.04131495,56922.0,56921.0,0.2428892]
[1725950236104,0.04131495,56922.0,56921.0,0.190236]
[1725950237308,0.04131495,56922.0,56921.0,0.090236]
[1725950238794,0.04131495,56922.0,56921.0,0.14290825]
[1725950238997,0.14131495,56922.0,56921.0,0.14290825]
[1725950239912,0.14131495,56922.0,56921.0,0.0024]
[1725950247396,0.22914995,56922.0,56921.0,0.07260166]
[1725950250008,0.31698495,56922.0,56921.0,0.0024]
[1725950251811,0.31698495,56922.0,56921.0,0.05505553]
[1725950253905,0.22914995,56922.0,56921.0,0.05505553]
[1725950255210,0.31698495,56922.0,56921.0,0.05505553]
[1725950255411,0.22914995,56922.0,56921.0,0.05505553]
[1725950256409,0.22914995,56922.0,56921.0,0.0024]
[1725950256608,0.34546636,56922.0,56921.0,0.0024]
[1725950257714,0.36298595,56922.0,56921.0,0.0024]
[1725950258012,0.45082095,56922.0,56921.0,0.0024]
[1725950258809,0.36298595,56922.0,56921.0,0.0024]
[1725950259013,0.45082095,56922.0,56921.0,0.0024]
[1725950259412,0.36298595,56922.0,56921.0,0.0024]
[1725950260109,0.25763136,56922.0,56921.0,0.0024]
[1725950261507,0.25763135,56922.0,56921.0,0.0024]
[1725950262512,0.34546635,56922.0,56921.0,0.0024]
[1725950264500,0.34546635,56922.0,56921.0,0.05505553]
[1725950264501,0.31698495,56922.0,56921.0,0.05505553]
[1725950268521,0.31698495,56922.0,56921.0,0.0024]
[1725950273313,0.31698495,56922.0,56921.0,0.05507185]
[1725950276426,0.31698495,56922.0,56921.0,0.0024]
[1725950279522,0.34546651,56922.0,56921.0,0.0024]
[1725950281428,0.24546651,56922.0,56921.0,0.0024]
[1725950281727,0.34546651,56922.0,56921.0,0.05512064]
[1725950282223,0.34546651,56922.0,56921.0,0.0024]
[1725950284031,0.06979651,56922.0,56921.0,0.0024]
[1725950284325,0.06979651,56922.0,56921.0,0.05512064]
[1725950284522,0.04131495,56922.0,56921.0,0.0024]
[1725950284824,0.04131495,56922.0,56921.0,0.05510385]
[1725950285834,0.14131495,56922.0,56921.0,0.05510385]
[1725950286028,0.14131495,56922.0,56921.0,0.0024]
[1725950286029,0.16979385,56922.0,56921.0,0.0024]
[1725950286331,0.14131495,56922.0,56921.0,0.0024]
[1725950286527,0.14131495,56922.0,56921.0,0.07260261]
[1725950286736,0.14131495,56922.0,56921.0,0.0024]
[1725950287432,0.14131495,56922.0,56921.0,0.07264953]
[1725950288330,0.14131495,56922.0,56921.0,0.0024]
[1725950289534,0.14131495,56922.0,56921.0,0.07263504]
[1725950290132,0.22914995,56922.0,56921.0,0.07263504]
[1725950291732,0.22914995,56922.0,56921.0,0.0024]
[1725950294639,0.25762865,56922.0,56921.0,0.0024]
[1725950295340,0.22914995,56922.0,56921.0,0.0024]
[1725950297642,0.12914995,56922.0,56921.0,0.0024]
[1725950300338,0.04131495,56922.0,56921.0,0.090236]
[1725950300730,0.12914995,56922.0,56921.0,0.090236]
[1725950303340,0.12914995,56922.0,56921.0,0.0024]
[1725950304642,0.12914995,56922.0,56921.0,0.090236]
[1725950309248,0.04131495,56922.0,56921.0,0.090236]
[1725950309849,0.12914995,56922.0,56921.0,0.090236]
[1725950310148,0.114835,56922.0,56921.0,0.090236]
[1725950312942,0.027,56922.0,56921.0,0.090236]
[1725950314974,0.027,56922.0,56921.0,0.190236]
[1725950315247,0.027,56922.0,56921.0,0.2604579]
[1725950315440,0.114835,56922.0,56921.0,0.090236]
[1725950315646,0.027,56922.0,56921.0,0.090236]
[1725950316656,0.027,56922.0,56921.0,0.20049213]
[1725950318055,0.027,56922.0,56921.0,0.30049213]
[1725950322550,0.114835,56922.0,56921.0,0.30049213]
[1725950324364,0.114835,56922.0,56921.0,0.190236]
[1725950324660,0.114835,56922.0,56921.0,0.300499]
[1725950325359,0.20267,56922.0,56921.0,0.20065852]
[1725950325557,0.114835,56922.0,56921.0,0.0024]
[1725950325859,0.114835,56922.0,56921.0,0.07266782]
[1725950326066,0.114835,56922.0,56921.0,0.0024]
[1725950331653,0.14331372,56922.0,56921.0,0.0024]
[1725950334258,0.24331372,56922.0,56921.0,0.0024]
[1725950339663,0.214835,56922.0,56921.0,0.0024]
[1725950341763,0.114835,56922.0,56921.0,0.0024]
[1725950342868,0.027,56922.0,56921.0,0.090236]
[1725950343171,0.027,56922.0,56921.0,0.30698687]
[1725950343574,0.027,56922.0,56921.0,0.20165928]
[1725950346668,0.027,56922.0,56921.0,0.090236]
[1725950349371,0.0041,56925.0,56924.0,0.087832]
[1725950349572,0.0047,56936.0,56924.0,0.087832]
[1725950349573,0.0041,56928.0,56927.0,0.087827]
[1725950349771,0.091915,56935.0,56927.0,0.1008]
[1725950349965,0.091915,56935.0,56934.0,0.188616]
[1725950350270,0.10221091,56935.0,56934.0,0.187816]
[1725950350461,0.10221091,56935.0,56934.0,0.24042581]
[1725950351470,0.10221091,56935.0,56934.0,0.187816]
[1725950352378,0.10321091,56935.0,56934.0,0.188816]
[1725950353683,0.10321091,56935.0,56934.0,0.001]
[1725950354372,0.20321091,56935.0,56934.0,0.001]
[1725950354766,0.20321091,56935.0,56934.0,0.05360981]
[1725950356479,0.20321091,56935.0,56934.0,0.001]
[1725950356781,0.11539591,56935.0,56934.0,0.001]
[1725950360771,0.01539591,56935.0,56934.0,0.001]
[1725950363777,0.10321091,56935.0,56934.0,0.001]
[1725950368380,0.10321091,56935.0,56934.0,0.05360981]
[1725950369984,0.10321091,56935.0,56934.0,0.001]
[1725950373589,0.13168165,56935.0,56934.0,0.001]
[1725950376785,0.10321091,56935.0,56934.0,0.001]
[1725950378388,0.10321091,56935.0,56934.0,0.11275228]
[1725950378586,0.10321091,56935.0,56934.0,0.20051431]
[1725950379486,0.10321091,56935.0,56934.0,0.11275228]
[1725950384999,0.13168164,56935.0,56934.0,0.001]
[1725950386097,0.23168164,56935.0,56934.0,0.001]
[1725950386297,0.71769753,56935.0,56927.0,0.00191694]
[1725950386501,0.71769753,56935.0,56917.0,0.0494]
[1725950386502,0.1,56928.0,56925.0,0.00191694]
[1725950386703,0.08783,56925.0,56920.0,0.087837]
[1725950386895,0.21630073,56925.0,56919.0,0.07028923]
[1725950387587,0.21630073,56925.0,56918.0,0.16222923]
[1725950388007,0.21630073,56925.0,56918.0,0.09194]
[1725950388206,0.21630073,56925.0,56918.0,0.0041]
[1725950388405,0.21630073,56925.0,56924.0,0.0044]
[1725950389202,0.3216909,56925.0,56924.0,0.0044]
[1725950389405,0.21630073,56925.0,56924.0,0.0044]
[1725950389600,0.21630073,56925.0,56924.0,0.0034]
[1725950391208,0.21730073,56925.0,56924.0,0.0004]
[1725950392107,0.18883,56925.0,56924.0,0.0004]
[1725950392306,0.20325988,56925.0,56924.0,0.0004]
[1725950394106,0.10325988,56925.0,56924.0,0.0004]
[1725950396011,0.10225988,56925.0,56924.0,0.0044]
[1725950396614,0.20225988,56925.0,56924.0,0.0034]
[1725950398821,0.10225988,56925.0,56924.0,0.0034]
[1725950400714,0.087825,56929.0,56924.0,0.0034]
[1725950401015,0.10214291,56929.0,56927.0,0.087826]
[1725950401211,0.10214291,56929.0,56928.0,0.0008]
[1725950402918,0.10314291,56929.0,56928.0,0.0008]
[1725950403325,0.10414291,56929.0,56928.0,0.0008]
[1725950404625,0.15004291,56929.0,56928.0,0.0008]
[1725950405315,0.14904291,56929.0,56928.0,0.0008]
[1725950405520,0.15004291,56929.0,56928.0,0.0008]
[1725950405925,0.14904291,56929.0,56928.0,0.0008]
[1725950406119,0.15004291,56929.0,56928.0,0.0008]
[1725950413717,0.01631791,56929.0,56928.0,0.0008]
[1725950413923,0.01631791,56929.0,56928.0,0.137125]
[1725950414228,0.01631791,56929.0,56928.0,0.182225]
[1725950414531,0.01531791,56929.0,56928.0,0.183225]
[1725950414927,0.001,56929.0,56928.0,0.2953767]
[1725950415231,0.087823,56930.0,56928.0,0.2943767]
[1725950415428,0.087823,56930.0,56929.0,0.1129517]
[1725950417020,0.087823,56930.0,56929.0,0.11296162]
[1725950418629,0.088823,56930.0,56929.0,0.11296162]
[1725950419134,0.088823,56930.0,56929.0,0.30078562]
[1725950420646,0.088823,56930.0,56929.0,0.30097042]
[1725950421930,0.088823,56930.0,56929.0,0.188624]
[1725950422231,0.001,56930.0,56929.0,0.188624]
[1725950425129,0.001,56930.0,56929.0,0.088624]
[1725950425332,0.088822,56930.0,56929.0,0.0008]
[1725950425526,0.176644,56930.0,56929.0,0.0008]
[1725950425726,0.11729588,56930.0,56929.0,0.0008]
[1725950425923,0.20511788,56930.0,56929.0,0.0008]
[1725950426136,0.11729588,56930.0,56929.0,0.0008]
[1725950429926,0.088822,56930.0,56929.0,0.0008]
[1725950441434,0.11729701,56930.0,56929.0,0.0008]
[1725950444147,0.088822,56930.0,56929.0,0.0008]
[1725950444339,0.176644,56930.0,56929.0,0.0008]
[1725950444537,0.176644,56930.0,56929.0,0.07101371]
[1725950444736,0.088822,56930.0,56929.0,0.07101371]
[1725950450847,0.088822,56930.0,56929.0,0.0008]
[1725950452250,0.088822,56930.0,56929.0,0.07101371]
[1725950452843,0.176644,56930.0,56929.0,0.07101371]
[1725950454943,0.088822,56930.0,56929.0,0.07101371]
[1725950455143,0.088822,56930.0,56929.0,0.0008]
[1725950455953,0.176644,56930.0,56929.0,0.0008]
[1725950456352,0.088822,56930.0,56929.0,0.0008]
[1725950456653,0.176644,56930.0,56929.0,0.0008]
[1725950459057,0.20511951,56930.0,56929.0,0.0008]
[1725950459252,0.31051225,56930.0,56929.0,0.0008]
[1725950462051,0.20511951,56930.0,56929.0,0.0008]
[1725950462957,0.32268996,56930.0,56929.0,0.0008]
[1725950463156,0.41051196,56930.0,56929.0,0.0008]
[1725950463765,0.30511951,56930.0,56929.0,0.0008]
[1725950464067,0.41051296,56930.0,56929.0,0.0008]
[1725950464567,0.30511951,56930.0,56929.0,0.0008]
[1725950467058,0.276644,56930.0,56929.0,0.0008]
[1725950467753,0.088822,56930.0,56929.0,0.0008]
[1725950471258,0.088822,56930.0,56929.0,0.08852679]
[1725950474255,0.088822,56930.0,56929.0,0.0008]
[1725950474256,0.16239955,56930.0,56929.0,0.0008]
[1725950476170,0.16238783,56930.0,56929.0,0.0008]
[1725950479166,0.26238783,56930.0,56929.0,0.0008]
[1725950479869,0.02947521,56930.0,56929.0,0.088624]
[1725950480093,0.0041,56937.0,56935.0,0.087815]
[1725950480366,0.0041,56942.0,56939.0,0.087808]
[1725950480662,0.091903,56943.0,56940.0,0.0952]
[1725950480663,0.02846894,56941.0,56940.0,0.0952]
[1725950481265,0.02846894,56941.0,56940.0,0.183007]
[1725950481572,0.11341085,56943.0,56940.0,0.183007]
[1725950481774,0.02846759,56942.0,56940.0,0.183007]
[1725950482178,0.001,56941.0,56940.0,0.25428244]
[1725950482564,0.001,56941.0,56940.0,0.185007]
[1725950483067,0.001,56941.0,56940.0,0.184007]
[1725950483263,0.001,56941.0,56940.0,0.185007]
[1725950483770,0.001,56942.0,56940.0,0.185007]
[1725950483976,0.001,56942.0,56941.0,0.0008]
[1725950484471,0.01341085,56943.0,56941.0,0.1008]
[1725950484673,0.087801,56944.0,56942.0,0.0008]
[1725950484867,0.087801,56944.0,56943.0,0.0008]
[1725950485062,0.087801,56944.0,56942.0,0.0008]
[1725950485374,0.1,56947.0,56942.0,0.0008]
[1725950485375,0.087802,56943.0,56942.0,0.0008]
[1725950486466,0.087802,56943.0,56942.0,0.0018]
[1725950486864,0.175604,56943.0,56942.0,0.0018]
[1725950487060,0.087811,56937.0,56936.0,0.0041]
[1725950487277,0.087811,56937.0,56931.0,0.07027544]
[1725950487278,0.1,56937.0,56931.0,0.07027544]
[1725950487465,0.1,56932.0,56931.0,0.07027544]
[1725950487667,0.187819,56932.0,56931.0,0.07027544]
[1725950487972,0.187819,56932.0,56926.0,0.48158344]
[1725950488174,0.1,56927.0,56926.0,0.15810344]
[1725950488575,0.1,56927.0,56926.0,0.087828]
[1725950489274,0.1,56927.0,56926.0,0.089828]
[1725950490070,0.087826,56928.0,56926.0,0.089828]
[1725950490372,0.087826,56928.0,56927.0,0.0008]
[1725950491877,0.087823,56930.0,56927.0,0.088627]
[1725950492175,0.087823,56930.0,56927.0,0.087827]
[1725950492675,0.087823,56930.0,56927.0,0.088827]
[1725950492874,0.01399082,56931.0,56929.0,0.087824]
[1725950493175,0.0041,56936.0,56930.0,0.0008]
[1725950493378,0.087821,56931.0,56930.0,0.0008]
[1725950493573,0.087821,56931.0,56929.0,0.087824]
[1725950493773,0.087822,56930.0,56929.0,0.087824]
[1725950494078,0.16,56932.0,56927.0,0.003]
[1725950494279,0.087825,56928.0,56927.0,0.003]
[1725950494777,0.087825,56928.0,56927.0,0.001]
[1725950495781,0.087825,56928.0,56926.0,0.087828]
[1725950496278,0.0004,56927.0,56926.0,0.087828]
[1725950496973,0.0004,56927.0,56926.0,0.089828]
[1725950497375,0.0004,56927.0,56926.0,0.092828]
[1725950498579,0.0004,56927.0,56926.0,0.090828]
[1725950498784,0.0004,56927.0,56926.0,0.092828]
[1725950500178,0.088227,56927.0,56926.0,0.092828]
[1725950501275,0.0004,56927.0,56926.0,0.29402969]
[1725950501484,0.0004,56927.0,56926.0,0.206402]
[1725950501980,0.088227,56927.0,56926.0,0.206402]
[1725950502276,0.088227,56927.0,56926.0,0.29403204]
[1725950502474,0.088227,56927.0,56926.0,0.206402]
[1725950503176,0.088227,56927.0,56926.0,0.2940361]
[1725950503384,0.088227,56927.0,56926.0,0.1804621]
[1725950504277,0.088227,56927.0,56926.0,0.092828]
[1725950507986,0.088227,56927.0,56926.0,0.005]
[1725950509988,0.176054,56927.0,56926.0,0.005]
[1725950510182,0.188227,56927.0,56926.0,0.005]
[1725950511286,0.803054,56927.0,56926.0,0.004]
[1725950511482,0.803054,56927.0,56918.0,0.0917341]
[1725950511483,0.527,56926.0,56922.0,0.05259722]
[1725950511689,0.087838,56920.0,56918.0,0.05259722]
[1725950511888,0.087844,56916.0,56915.0,0.05259722]
[1725950512084,0.188244,56916.0,56915.0,0.05259722]
[1725950512389,0.087851,56912.0,56909.0,0.05259722]
[1725950512594,0.1004,56910.0,56908.0,0.05258493]
[1725950512792,0.1004,56910.0,56909.0,0.05258493]
[1725950512991,0.1004,56910.0,56907.0,0.07012843]
[1725950513185,0.0004,56908.0,56907.0,0.07012843]
[1725950513586,0.0004,56908.0,56907.0,0.07009567]
[1725950515382,0.0004,56908.0,56906.0,0.15795467]
[1725950515586,0.0004,56908.0,56906.0,0.087859]
[1725950515791,0.0004,56908.0,56907.0,0.014]
[1725950516493,0.0004,56910.0,56907.0,0.028]
[1725950516689,0.0004,56910.0,56909.0,0.0004]
[1725950519989,0.088253,56910.0,56909.0,0.0144]
[1725950520297,0.088253,56910.0,56909.0,0.09849567]
[1725950520599,0.19005408,56910.0,56909.0,0.09844653]
[1725950520796,0.19005408,56910.0,56909.0,0.0284]
[1725950521494,0.71721408,56910.0,56909.0,0.0284]
[1725950521702,0.087864,56903.0,56900.0,0.05663629]
[1725950521891,0.1604,56901.0,56900.0,0.05253629]
[1725950522085,0.087869,56900.0,56899.0,0.05253629]
[1725950522283,0.087869,56900.0,56898.0,0.05253629]
[1725950522284,0.08787,56899.0,56898.0,0.05253629]
[1725950522489,0.24827,56899.0,56898.0,0.05253629]
[1725950522695,0.24787,56899.0,56898.0,0.05253629]
[1725950523091,0.0004,56900.0,56897.0,0.05253629]
[1725950523293,0.0004,56900.0,56899.0,0.0004]
[1725950523294,0.1604,56900.0,56899.0,0.0004]
[1725950524101,0.17417626,56900.0,56899.0,0.0004]
[1725950524798,0.26204526,56900.0,56899.0,0.0004]
[1725950526096,0.26304526,56900.0,56899.0,0.0004]
[1725950526294,0.26404526,56900.0,56899.0,0.0004]
[1725950532406,0.35191426,56900.0,56899.0,0.0004]
[1725950532900,0.87915426,56900.0,56899.0,0.0004]
[1725950533700,0.087881,56892.0,56891.0,0.0041]
[1725950533895,0.1604,56892.0,56885.0,0.10003629]
[1725950534096,0.1604,56886.0,56885.0,0.0475]
[1725950534406,0.16,56886.0,56885.0,0.0475]
[1725950535407,0.16,56886.0,56885.0,0.10003629]
[1725950536703,0.161,56886.0,56885.0,0.0675]
[1725950537010,0.161,56886.0,56885.0,0.11993544]
[1725950537202,0.162,56886.0,56885.0,0.11993544]
[1725950537406,0.24989,56886.0,56885.0,0.11993544]
[1725950537596,0.24989,56886.0,56885.0,0.0724493]
[1725950538209,0.24989,56886.0,56885.0,0.02]
[1725950538605,0.24989,56886.0,56885.0,0.0724493]
[1725950539104,0.24989,56886.0,56885.0,0.02]
[1725950540406,0.26377896,56886.0,56885.0,0.02]
[1725950540608,0.26377896,56886.0,56885.0,0.0724493]
[1725950541410,0.26377896,56886.0,56885.0,0.02]
[1725950541411,0.35166896,56886.0,56885.0,0.02]
[1725950541801,1.47902896,56886.0,56885.0,0.02]
[1725950542810,1.47802896,56886.0,56885.0,0.009]
[1725950543012,1.47902896,56886.0,56885.0,0.02]
[1725950548207,1.41902896,56886.0,56885.0,0.02]
[1725950550225,1.50691896,56886.0,56885.0,0.02]
[1725950552321,0.90691896,56886.0,56885.0,0.02]
[1725950552519,1.50691896,56886.0,56885.0,0.02]
[1725950553121,0.90691896,56886.0,56885.0,0.02]
[1725950553524,0.37955896,56886.0,56885.0,0.02]
[1725950566434,0.37955896,56886.0,56885.0,0.0724493]
[1725950568230,0.29166896,56886.0,56885.0,0.02]
[1725950568437,0.10377896,56886.0,56885.0,0.02]
[1725950568736,0.20377896,56886.0,56885.0,0.02]
[1725950578147,0.20377896,56886.0,56885.0,0.09031548]
[1725950580543,0.20377896,56886.0,56885.0,0.02]
[1725950580544,0.23227864,56886.0,56885.0,0.02]
[1725950580748,0.01588896,56886.0,56885.0,0.107892]
[1725950581138,0.01588896,56886.0,56885.0,0.17820748]
[1725950581740,0.01588896,56886.0,56885.0,0.09031548]
[1725950582446,0.01588896,56886.0,56885.0,0.02]
[1725950582647,0.01588896,56886.0,56885.0,0.09031548]
[1725950583443,0.01588896,56886.0,56885.0,0.02]
[1725950583746,0.10377896,56886.0,56885.0,0.02]
[1725950587552,0.10377896,56886.0,56885.0,0.22336796]
[1725950588350,0.08989,56886.0,56885.0,0.31125996]
[1725950589147,0.002,56886.0,56885.0,0.22362586]
[1725950589349,0.087884,56890.0,56886.0,0.52736]
[1725950589556,0.0004,56892.0,56885.0,0.83573386]
[1725950589557,0.0004,56892.0,56891.0,0.087882]
[1725950589747,0.0004,56892.0,56891.0,0.20371585]
[1725950589952,0.0004,56892.0,56891.0,0.20331585]
[1725950590453,0.088281,56892.0,56891.0,0.087882]
[1725950591156,0.089281,56892.0,56891.0,0.097882]
[1725950591452,0.090281,56892.0,56891.0,0.105882]
[1725950599354,0.0024,56892.0,56891.0,0.205882]
[1725950599560,0.0024,56892.0,56891.0,0.32096442]
[1725950599859,0.087876,56896.0,56895.0,0.087876]
[1725950600170,0.087876,56896.0,56895.0,0.20335842]
[1725950600362,0.087876,56896.0,56895.0,0.29101419]
[1725950600967,0.088876,56896.0,56895.0,0.30001419]
[1725950601462,0.088876,56896.0,56895.0,0.18493177]
[1725950601858,0.088876,56896.0,56895.0,0.29977319]
[1725950602258,0.089876,56896.0,56895.0,0.31077319]
[1725950602458,0.002,56896.0,56895.0,0.16085612]
[1725950602657,0.002,56896.0,56895.0,0.108276]
[1725950602860,0.002,56896.0,56895.0,0.1608561]
[1725950603373,0.002,56896.0,56895.0,0.16085273]
[1725950604265,0.002,56896.0,56895.0,1.235556]
[1725950604868,0.102,56896.0,56895.0,1.235556]
[1725950605168,0.189875,56896.0,56895.0,0.108276]
[1725950607262,0.189875,56896.0,56895.0,0.1608494]
[1725950607458,0.189875,56896.0,56895.0,0.108276]
[1725950610159,0.102,56896.0,56895.0,0.108276]
[1725950610576,0.102,56896.0,56895.0,0.17838283]
[1725950612586,0.102,56896.0,56895.0,0.108276]
[1725950616070,0.189875,56896.0,56895.0,0.108276]
[1725950618374,0.189875,56896.0,56895.0,0.16093901]
[1725950619369,0.189875,56896.0,56895.0,0.108276]
[1725950621067,0.102,56896.0,56895.0,0.108276]
[1725950625573,0.102,56896.0,56895.0,0.22340536]
[1725950626872,0.002,56896.0,56895.0,0.22340536]
[1725950627582,0.002,56896.0,56895.0,0.32874137]
[1725950629880,0.002,56896.0,56895.0,0.32880139]
[1725950630577,0.089875,56896.0,56895.0,0.24092539]
[1725950630782,0.137675,56896.0,56895.0,0.13558938]
[1725950632571,0.137675,56896.0,56895.0,0.0204]
[1725950637580,0.137675,56896.0,56895.0,0.0731325]
[1725950637787,0.16616784,56896.0,56895.0,0.0731325]
[1725950638485,0.137675,56896.0,56895.0,0.0731325]
[1725950638987,0.16616825,56896.0,56895.0,0.0731325]
[1725950639379,0.137675,56896.0,56895.0,0.0204]
[1725950639984,0.137675,56896.0,56895.0,0.0194]
[1725950641388,0.136675,56896.0,56895.0,0.0094]
[1725950641594,0.137675,56896.0,56895.0,0.0184]
[1725950650091,0.137675,56896.0,56895.0,0.07110439]
[1725950650301,0.089875,56896.0,56895.0,0.07110439]
[1725950650489,0.089875,56896.0,56895.0,0.0184]
[1725950655704,0.089875,56896.0,56895.0,0.1337311]
[1725950656500,0.089875,56896.0,56895.0,0.22158567]
[1725950657398,0.17775,56896.0,56895.0,0.0184]
[1725950657600,0.089875,56896.0,56895.0,0.0184]
[1725950657895,0.089875,56896.0,56895.0,0.14140737]
[1725950658099,0.089875,56896.0,56895.0,0.07111903]
[1725950658797,0.17775,56896.0,56895.0,0.0184]
[1725950660190,1.30503,56896.0,56895.0,0.0184]
[1725950660494,1.30503,56896.0,56889.0,0.0004]
[1725950660495,1.217155,56896.0,56892.0,0.05271903]
[1725950660797,0.087881,56892.0,56891.0,0.05271903]
[1725950661005,0.188281,56892.0,56891.0,0.05271903]
[1725950661198,1.364301,56892.0,56891.0,0.05271903]
[1725950661597,0.087882,56891.0,56890.0,0.05271903]
[1725950661795,0.736482,56891.0,56890.0,0.05271903]
[1725950662100,1.263802,56891.0,56890.0,0.05271903]
[1725950662302,0.087884,56890.0,56889.0,0.05271903]
[1725950662603,0.188284,56890.0,56889.0,0.05271903]
[1725950663998,0.189284,56890.0,56889.0,0.05271903]
[1725950664806,0.190284,56890.0,56889.0,0.05571903]
[1725950665308,0.190284,56890.0,56889.0,0.003]
[1725950666407,0.190284,56890.0,56889.0,0.0556561]
[1725950666607,0.190284,56890.0,56889.0,0.003]
[1725950667910,0.20209298,56890.0,56889.0,0.003]
[1725950668301,0.20209298,56890.0,56889.0,0.05564915]
[1725950668610,0.20209298,56890.0,56889.0,0.003]
[1725950668807,0.10209298,56890.0,56889.0,0.003]
[1725950669807,0.01420898,56890.0,56889.0,0.003]
[1725950670106,0.01420898,56890.0,56889.0,0.190886]
[1725950670310,0.0024,56890.0,56889.0,0.190886]
[1725950670505,0.0024,56890.0,56889.0,0.090886]
[1725950670702,0.0024,56890.0,56889.0,0.190886]
[1725950671008,0.0024,56890.0,56889.0,0.78839802]
[1725950671805,0.0024,56890.0,56889.0,0.26107802]
[1725950672206,0.0024,56890.0,56889.0,0.190886]
[1725950672605,0.0024,56890.0,56889.0,1.318206]
[1725950672809,0.0004,56893.0,56892.0,0.087881]